Cogmind - Beta 10.2 @@@ ROGUE MODE // 2021.05.11 @ 06:53:11 Player: Raibnyu Result: Destroyed by P-80 Master with Gamma Rifle Performance ------------- Evolutions (7) 3500 Regions Visited (13) 2600 Robots Destroyed (171) 855 Value Destroyed (7598) 7598 Prototype IDs (19) 380 Alien Tech Used (0) 0 Bonus (1978) 1978 TOTAL SCORE: 16911 Bonus ------- High Alert Combat Kills 1645 Follower Combat Kills 50 Aligned with FarCom 300 Friendly Fire -17 Cogmind --------- Core Integrity 0/1300 Matter 127/300 Energy 98/100 System Corruption 18% Temperature Cool (0) Movement Core (50) Location -3/Research Parts ------- > --- POWER (3) -------- (None) > --- PROPULSION (5) --- (None) > --- UTILITY (10) ----- (None) > --- WEAPON (3) ------- (None) > --- INVENTORY (4) ---- Advanced Heat Sink Long-range Terrain Scanner Improved ECM Suite Improved Proton Missile Launcher Peak State ------------ > --- POWER ------------ Particle Reactor Light Particle Reactor Light Particle Reactor > --- PROPULSION ------- Medium Treads Improved Heavy Treads Advanced Heavy Treads > --- UTILITY ---------- Advanced Cooling System High-capacity Storage Unit High-capacity Storage Unit High-capacity Storage Unit Advanced Signal Interpreter Quantum Capacitor Improved Heavy Armor Plating Improved System Restoration Module > --- WEAPON ----------- YOLO Cannon Helical Railgun > --- INVENTORY -------- Micro Nuclear Core Neutrino Core Micro Fission Core Medium Treads Medium Treads Medium Treads Medium Treads Medium Treads Armored Medium Treads Heavy Treads High-capacity Storage Unit Long-range Terrain Scanner Advanced Weapon Cycler Experimental Transmission Jammer Improved ECM Suite Phase Shifter Improved Medium Armor Plating Advanced Hardlight Generator Gamma Rifle Matter Neutralizer Matter Neutralizer Improved KE Penetrator Improved Proton Missile Launcher Improved Proton Missile Launcher Gamma Bomb Array Heavy Missile Launcher Heavy Missile Launcher [Rating: 145] Favorites ----------- Power Improved Deuterium Engine Engine Improved Deuterium Engine Power Core Micro Fission Core Reactor Light Particle Reactor Propulsion Light Treads Treads Light Treads Leg Flexi-carbon Leg Wheel Wheel Utility High-capacity Storage Unit Device Improved ECM Suite Storage High-capacity Storage Unit Processor Advanced Signal Interpreter Hackware Hacking Suite Protection Improved Medium Armor Plating Weapon Matter Neutralizer Energy Gun EM Pulse Gun Energy Cannon Matter Neutralizer Ballistic Gun High-powered Shotgun Launcher Heavy Missile Launcher Impact Weapon Heavy Mace Slashing Weapon Power Sword Piercing Weapon Kinetic Spear Special Melee Weapon Advanced Datajack Build | -11 -10 -10 -9 -9 -9 -8 -8 -8 -7 -6 -5 -4 -3 ------- Run | Scr Mat Min Mat Min Exi Min Mat Sto Fac Fac Fac Fac Res Slots Evolved 14 | . . . 2 . . . 2 . 2 2 2 2 2 Power 2 | . . . . . . . . . 1 . 1 . . Propulsion 3 | . . . . . . . 2 . . . . 1 . Utility 8 | . . . 2 . . . . . 1 2 . 1 2 Weapon 1 | . . . . . . . . . . . 1 . . Parts Attached 232 | 7 2 1 14 4 4 3 14 15 18 16 28 20 86 Power 22 | 1 . . 1 . . . 1 1 5 1 2 2 8 Engine 11 | 1 . . 1 . . . 1 . 5 1 1 1 . Core 5 | . . . . . . . . 1 . . 1 . 3 Reactor 6 | . . . . . . . . . . . . 1 5 Propulsion 37 | 2 2 1 2 . . . 5 3 4 2 3 2 11 Treads 34 | . 2 1 2 . . . 5 3 4 2 3 2 10 Leg 1 | . . . . . . . . . . . . . 1 Wheel 2 | 2 . . . . . . . . . . . . . Hover . | . . . . . . . . . . . . . . Flight . | . . . . . . . . . . . . . . Utility 75 | 2 . . 7 . 1 . 1 4 3 5 8 9 35 Device 48 | . . . 1 . . . 1 3 1 2 4 6 30 Storage 10 | 2 . . 4 . . . . . . 2 1 . 1 Processor 3 | . . . . . . . . . . . . 2 1 Hackware 1 | . . . 1 . . . . . . . . . . Protection 13 | . . . 1 . 1 . . 1 2 1 3 1 3 Artifact . | . . . . . . . . . . . . . . Weapon 98 | 2 . . 4 4 3 3 7 7 6 8 15 7 32 Energy Gun 21 | 2 . . 2 2 . 1 3 3 2 . . . 6 Energy Cannon 39 | . . . . . 3 1 2 2 1 3 10 5 12 Ballistic Gun 8 | . . . . . . . . . 1 2 . . 5 Ballistic Cannon . | . . . . . . . . . . . . . . Launcher 18 | . . . 1 2 . . 1 . 1 1 3 1 8 Special Weapon . | . . . . . . . . . . . . . . Impact Weapon 1 | . . . 1 . . . . . . . . . . Slashing Weapon 9 | . . . . . . 1 1 2 1 2 2 . . Piercing Weapon 1 | . . . . . . . . . . . . . 1 Special Melee Weapon 1 | . . . . . . . . . . . . 1 . Unidentified Prototypes 15 | . . . . . 2 . . 2 . . . 1 10 Parts Lost 59 | . . . 2 . . . 2 5 5 . 3 5 37 Power 12 | . . . . . . . . 1 2 . . 2 7 Propulsion 15 | . . . . . . . 1 3 1 . . . 10 Utility 19 | . . . 1 . . . 1 . . . 3 2 12 Weapon 13 | . . . 1 . . . . 1 2 . . 1 8 Highest Loss Streak 21 | . . . 1 . . . 2 3 5 . 2 2 21 Average Slot Usage (%) 91 | . 100 100 99 100 91 88 91 96 95 99 92 89 80 Engine 9 | . 14 14 11 11 11 11 9 6 10 13 15 5 1 Core 1 | . . . . . . . . 2 3 . 1 5 3 Reactor 1 | . . . . . . . . . . . . 3 7 Treads 22 | . 16 28 22 22 22 22 36 35 29 25 19 17 13 Device 12 | . . . 5 . . . 7 8 5 18 15 20 17 Storage 17 | . 28 28 24 22 22 22 18 18 15 19 17 15 13 Processor 1 | . . . . . . . . . . . . . 5 Hackware 4 | . . . 11 11 11 11 9 9 7 6 1 . . Protection 4 | . . . 1 11 8 11 1 . 8 1 5 4 2 Energy Gun 4 | . 28 28 19 21 10 . 1 10 4 . . . . Energy Cannon 6 | . . . . . 5 10 7 1 . 5 9 12 8 Ballistic Gun 1 | . . . . . . . . . 3 4 . . . Naked Turns 51 | . . . . . . . . . . . . . 51 Heaviest Build 206 | 17 17 17 46 46 58 58 58 56 67 123 161 172 206 Greatest Support 173 | 20 40 40 40 40 40 40 84 84 90 96 125 172 173 Greatest Overweight (x) 4 | 1 1 . 1 1 1 1 . 1 . 1 1 1 4 Average Overweight (x) . | . . . . 1 . 1 . . . . 1 . . Largest Inventory Capacity 28 | 8 8 8 18 16 16 16 16 16 16 26 28 28 28 Average Capacity 21 | 6 8 8 14 16 16 16 16 16 16 23 26 28 27 Most Carried 28 | 6 7 8 16 16 16 16 16 16 16 26 28 28 28 Average Carried 20 | 4 6 7 10 15 14 15 15 14 15 23 25 27 25 Final Capacity 28 | 8 8 8 16 16 16 16 16 16 16 26 28 28 4 Final Carried 28 | 5 7 8 16 16 16 14 15 16 16 25 28 27 4 Class Distribution -------------------- 33% | Mutant 20% | Hauler-Skirmisher 15% | Hauler-Mutant 7% | Hauler-Assassin 6% | Generator-Mutant 6% | Skirmisher 4% | Hauler-Tank 4% | Assassin Dominant Class ---------------- Mutant | -10/Materials Mutant | -10/Mines Mutant | -9/Materials Mutant | -9/Mines Mutant | -9/Exiles Mutant | -8/Mines Mutant | -8/Materials Skirmisher | -8/Storage Skirmisher | -7/Factory Hauler-Skirmisher | -6/Factory Hauler-Assassin | -5/Factory Hauler-Skirmisher | -4/Factory Generator-Mutant | -3/Research Resources | -11 -10 -10 -9 -9 -9 -8 -8 -8 -7 -6 -5 -4 -3 ----------- Run | Scr Mat Min Mat Min Exi Min Mat Sto Fac Fac Fac Fac Res Matter Collected 3151 | 270 20 10 165 80 40 29 135 167 126 350 376 237 1146 Remotely . | . . . . . . . . . . . . . . Salvage Created 7081 | 68 229 14 619 219 . 107 421 325 208 326 1059 919 2567 Parts 310 | 2 16 1 46 6 . 3 16 27 11 18 27 40 97 Haulers Intercepted 6 | . . . . . . . . 1 . 1 1 2 1 Recyclers Shooed 6 | . . . . . . 1 . . . . 1 1 3 Parts Field Recycled . | . . . . . . . . . . . . . . Retrieved Matter . | . . . . . . . . . . . . . . Parts Self-Destructed . | . . . . . . . . . . . . . . Prevented . | . . . . . . . . . . . . . . Kills | -11 -10 -10 -9 -9 -9 -8 -8 -8 -7 -6 -5 -4 -3 ------- Run | Scr Mat Min Mat Min Exi Min Mat Sto Fac Fac Fac Fac Res Combat Hostiles Destroyed 110 | . 3 . 14 3 . 3 7 4 2 3 11 16 44 Melee 2 | . . . . . . . . . . 1 . . 1 Guns 20 | . 1 . 10 1 . . . 3 1 . . . 4 Cannons 42 | . . . . . . 1 2 . 1 1 6 11 20 AOE 41 | . 2 . 4 2 . 2 5 1 . . 5 5 15 Classes Destroyed 16 | 1 3 1 2 1 . . 3 2 1 . 1 . 1 Worker 7 | . . . . . . . 1 1 1 2 . . 2 Builder 8 | . . . . . . . 1 1 . . . 1 5 Tunneler 2 | . . 1 . . . . . . . . 1 . . Hauler 6 | . . . . . . . . 1 . 1 1 2 1 Recycler 16 | 1 1 . 2 2 . . 2 . 1 . 3 2 2 Mechanic 2 | . . . . . . . . 1 . . . . 1 Operator 4 | . . . 1 . . . 1 . . 1 . . 1 Watcher 16 | . 2 . 3 . . . 1 1 1 1 3 2 2 Swarmer 12 | . 1 . 7 . . . . . . . . 4 . Saboteur 1 | . . . . . . . . . . . . . 1 Grunt 39 | . 2 . 4 2 . 3 3 2 . 1 5 . 17 Brawler 1 | . . . . 1 . . . . . . . . . Duelist 1 | . . . . . . . . . . . 1 . . Sentry 17 | . . . 3 . . . 2 2 1 . . 2 7 Hunter 5 | . . . . . . . 2 . . . . 2 1 Programmer 34 | . . . . . . . . . 1 2 5 8 18 Best Kill Streak 8 | 1 3 1 4 4 . 3 3 3 2 1 5 3 8 Combat Bots Only 7 | . 1 . 3 3 . 3 2 1 1 1 4 3 7 Max Kills in Single Turn 4 | 1 1 1 2 3 . 2 2 2 1 1 2 2 4 Gunslinging . | . . . . . . . . . . . . . . Exploded 2 | . 1 . 2 2 . 1 1 1 . . 2 2 2 Melee 1 | . . . . . . . . . . 1 . . 1 Uniques/NPCs Destroyed . | . . . . . . . . . . . . . . Combat | -11 -10 -10 -9 -9 -9 -8 -8 -8 -7 -6 -5 -4 -3 -------- Run | Scr Mat Min Mat Min Exi Min Mat Sto Fac Fac Fac Fac Res Damage Taken 13575 | . 154 21 591 68 . 146 729 556 655 306 917 1319 8113 Core 1805 | . 83 10 88 . . . 64 75 90 45 16 24 1310 Absorbed by Shields 455 | . . . . . . . 105 . . . . . 350 Core Remaining (%) 86 | 100 . 62 . . . 78 . 74 87 94 98 97 . Volleys Fired 394 | 2 16 2 37 6 . 5 24 23 16 27 35 53 148 Largest 3 | 2 2 2 2 2 . 1 2 2 2 2 3 3 3 Hottest 320 | 80 80 80 105 130 . 100 110 110 110 165 204 320 320 Shots Fired 701 | 4 32 4 73 12 . 5 28 42 30 50 66 112 243 Gun 235 | 4 32 4 70 8 . 1 8 38 26 11 . . 33 Cannon 418 | . . . . . . 4 16 4 3 35 53 105 198 Launcher 48 | . . . 3 4 . . 4 . 1 4 13 7 12 Special . | . . . . . . . . . . . . . . Kinetic 42 | . . . . . . . . . 9 11 . . 22 Thermal 401 | . . . 15 8 . 5 16 4 3 20 31 101 198 Explosive 36 | . . . 3 4 . . 4 . 1 4 13 3 4 Electromagnetic 222 | 4 32 4 55 . . . 8 38 17 15 22 8 19 Robot Hit Streak 23 | 2 8 3 17 22 . 6 5 14 6 12 6 19 23 Robot Miss Streak 6 | 2 2 . 6 1 . 1 2 2 3 4 3 3 3 Penetration Max 1 | . . . . . . . . . . . . . 1 Secondary Targets . | . . . . . . . . . . . . . . Capacitor 78 | . . . . . . . . . . . . . 78 Shots Hit Robots 429 | 2 16 3 53 9 . 3 16 30 16 32 46 59 144 Core Hits 275 | 2 8 1 29 8 . 3 16 16 9 12 30 30 111 Critical Hits 16 | . . . . . . . 1 . . 1 1 1 12 Critical Kills 4 | . . . . . . . . . . . 1 . 3 Critical Parts Destroyed 11 | . . . . . . . 1 . . 1 . 1 8 Melee Attacks 34 | . . . 2 . . 2 1 4 8 5 12 . . Impact 2 | . . . 2 . . . . . . . . . . Slashing 32 | . . . . . . 2 1 4 8 5 12 . . Piercing . | . . . . . . . . . . . . . . Sneak Attacks 6 | . . . . . . . . . . 1 5 . . Combat Hostiles . | . . . . . . . . . . . . . . Follow-up Attacks . | . . . . . . . . . . . . . . Damage Inflicted 26872 | 40 598 42 898 317 . 530 1967 991 556 1279 3420 3801 12433 Guns 2682 | 40 251 42 687 96 . 14 72 320 200 301 . . 659 Cannons 12869 | . . . . . . 218 884 349 143 728 1419 2393 6735 Explosions 10325 | . 347 . 211 221 . 298 1003 322 213 101 1183 1387 5039 Melee 917 | . . . . . . . . . . 108 809 . . Ramming 79 | . . . . . . . 8 . . 41 9 21 . Kinetic 848 | . . . . . . . . . 89 301 . . 458 Thermal 19801 | . 347 . 248 96 . 530 1760 671 356 451 1552 3238 10552 Explosive 1947 | . . . 155 221 . . 127 . . 101 594 95 654 Electromagnetic 3280 | 40 251 42 495 . . . 72 320 111 277 456 447 769 Impact . | . . . . . . . . . . . . . . Slashing 917 | . . . . . . . . . . 108 809 . . Piercing . | . . . . . . . . . . . . . . Highest Corruption 18 | . . . . . . . . 1 5 2 3 5 18 Average Corruption 6 | . . . . . . . . 1 4 1 2 4 10 Corruption Purged 27 | . . . . . . . . . . . . 5 22 Effects 186 | . . . . . . . . 1 16 14 12 14 129 Message Errors 38 | . . . . . . . . 1 5 6 1 3 22 Matter Fused 30 | . . . . . . . . . 4 . 4 1 21 Heat Flow Errors 22 | . . . . . . . . . 4 4 3 . 11 Energy Discharges 19 | . . . . . . . . . 1 1 2 1 14 Parts Rejected 1 | . . . . . . . . . . . . . 1 Data Loss (minor) 13 | . . . . . . . . . . 1 1 6 5 Data Loss (major) 6 | . . . . . . . . . . . . . 6 Misfires 7 | . . . . . . . . . 2 . . . 5 Alerts 1 | . . . . . . . . . . . . . 1 Misdirections 17 | . . . . . . . . . . . . . 17 Targeting Errors 29 | . . . . . . . . . . 2 1 3 23 Weapon Failures 3 | . . . . . . . . . . . . . 3 Overload Shots . | . . . . . . . . . . . . . . Overflow Damage 2800 | . 28 . . 12 . 25 294 27 100 63 620 527 1104 Projectiles 1399 | . . . . . . . 244 27 . 46 131 182 769 Explosions 1086 | . 28 . . 12 . 25 50 . 100 13 178 345 335 Melee 315 | . . . . . . . . . . 4 311 . . Knockbacks 2 | . . . . . . . . . . 1 . 1 . Impact 2 | . . . . . . . . . . 1 . 1 . Kinetic . | . . . . . . . . . . . . . . Secondary . | . . . . . . . . . . . . . . Self-Inflicted Damage 847 | . 103 . 34 . . 42 . 82 50 . 133 298 105 Shots 22 | . 3 . 2 . . 1 . 2 1 . 3 3 7 Rammed 9 | . . . . . . . 1 . . 6 1 1 . Targets Rammed 10 | . . . . . . . 1 . . 7 1 1 . Kicked . | . . . . . . . . . . . . . . Crushed 1 | . . . . . . . . . . 1 . . . Highest Temperature 468 | 36 74 24 252 207 . 145 60 162 245 396 417 448 468 Average Temperature 109 | 20 29 12 45 80 . 74 14 56 78 134 126 118 138 Received Heat Transfer 1782 | . 9 12 129 36 . 54 171 117 72 18 54 18 1092 Effects 33 | . . . . . . . . . . 2 3 2 26 Shutdowns 15 | . . . . . . . . . . . 2 1 12 Energy Bleed 5 | . . . . . . . . . . . . . 5 Interference 5 | . . . . . . . . . . 2 1 . 2 Matter Decay 3 | . . . . . . . . . . . . 1 2 Damage (minor) 1 | . . . . . . . . . . . . . 1 Damage (major) 4 | . . . . . . . . . . . . . 4 Siege Activations . | . . . . . . . . . . . . . . Robots Corrupted 3 | . . . . . . . . . . 2 . 1 . Combat Hostiles 1 | . . . . . . . . . . 1 . . . Parts Fried 18 | . 3 . 1 . . . . 1 1 3 3 2 4 Impact Corruptions 1 | . . . . . . . . . . 1 . . . Robots Melted 4 | . . . . . . . . . . . . . 4 Combat Hostiles 4 | . . . . . . . . . . . . . 4 Parts Melted 22 | . . . . . . 1 2 3 1 . 1 1 13 Heat Transferred 17519 | . 250 . 494 222 . 517 1440 580 320 518 1364 2437 9377 Parts Sabotaged 2 | . . . . . . . . . . . . . 2 Parts Stolen . | . . . . . . . . . . . . . . Parts Stripped . | . . . . . . . . . . . . . . Power Chain Reactions 8 | . 2 . 1 . . . . 1 1 . 2 1 . Missiles Intercepted . | . . . . . . . . . . . . . . Alert | -11 -10 -10 -9 -9 -9 -8 -8 -8 -7 -6 -5 -4 -3 ------- Run | Scr Mat Min Mat Min Exi Min Mat Sto Fac Fac Fac Fac Res Peak Influence 1734 | 5 287 175 359 219 . 108 219 183 77 156 319 750 1734 Initial 393 | . 3 117 68 139 . . 41 63 9 . . 153 393 Average 278 | 1 168 130 220 142 . 12 95 96 26 41 143 361 863 Maximum Alert Level 5 | . 1 . 1 1 . . 1 . . . 1 3 5 Low Security (%) 61 | 100 40 100 41 66 . 100 86 100 100 100 67 26 . Level 1 16 | . 59 . 58 33 . . 13 . . . 32 45 3 Level 2 12 | . . . . . . . . . . . . 16 51 Level 3 3 | . . . . . . . . . . . . 11 13 Level 4 5 | . . . . . . . . . . . . . 26 Level 5 1 | . . . . . . . . . . . . . 4 High Security . | . . . . . . . . . . . . . . Max Security . | . . . . . . . . . . . . . . Squads Dispatched 51 | . 1 1 1 . . . 2 . 2 4 4 6 30 Investigation 6 | . . 1 . . . . 1 . . 2 . . 2 Extermination 18 | . . . . . . . . . 1 2 3 4 8 Reinforcement 14 | . 1 . 1 . . . 1 . 1 . 1 1 8 Assault 6 | . . . . . . . . . . . . . 6 Garrison 7 | . . . . . . . . . . . . 1 6 Intercept . | . . . . . . . . . . . . . . Construction Impeded 6 | . . . . . . . . . . . 1 1 4 Haulers Reinforced 1 | . . . . . . . . . . . . . 1 Stealth | -11 -10 -10 -9 -9 -9 -8 -8 -8 -7 -6 -5 -4 -3 --------- Run | Scr Mat Min Mat Min Exi Min Mat Sto Fac Fac Fac Fac Res Distress Signals 9 | . 1 . 2 . . . 2 2 . . 1 . 1 Communications Jammed 1 | . . . . . . . . . . . 1 . . Distress Signals . | . . . . . . . . . . . . . . Times Spotted 223 | . 13 3 25 3 . 3 20 10 9 10 19 19 89 Peak Tracking Total 20 | . 3 2 4 3 . 3 9 2 3 4 4 4 20 Tactical Retreats 20 | . 2 . 1 . . . . 1 . 2 5 1 8 Traps | -11 -10 -10 -9 -9 -9 -8 -8 -8 -7 -6 -5 -4 -3 ------- Run | Scr Mat Min Mat Min Exi Min Mat Sto Fac Fac Fac Fac Res Traps Triggered 11 | . . . . . . . 1 . 3 1 1 . 5 Indirectly 2 | . . . . . . . . . . . . . 2 Trap Hack Attempts . | . . . . . . . . . . . . . . Triggered . | . . . . . . . . . . . . . . Disarmed . | . . . . . . . . . . . . . . Reprogrammed . | . . . . . . . . . . . . . . Reused . | . . . . . . . . . . . . . . Traps Extracted . | . . . . . . . . . . . . . . Installed . | . . . . . . . . . . . . . . Triggered 5 | . . . . . . . . 2 1 1 . . 1 Machines | -11 -10 -10 -9 -9 -9 -8 -8 -8 -7 -6 -5 -4 -3 ---------- Run | Scr Mat Min Mat Min Exi Min Mat Sto Fac Fac Fac Fac Res Machines Disabled 50 | . 9 . 1 . . . 1 4 1 2 6 18 8 Max in Single Turn 9 | . 6 . 1 . . . 1 2 1 1 3 9 1 Garrison Access 3 | . . . . . . . . . 1 2 . . . Machines Sabotaged . | . . . . . . . . . . . . . . Garrisons Compromised . | . . . . . . . . . . . . . . Overloaded Fab Kills . | . . . . . . . . . . . . . . Fab Network Shutdowns . | . . . . . . . . . . . . . . Hacking | -11 -10 -10 -9 -9 -9 -8 -8 -8 -7 -6 -5 -4 -3 --------- Run | Scr Mat Min Mat Min Exi Min Mat Sto Fac Fac Fac Fac Res Machines Accessed 39 | . 1 1 1 . 3 . 1 5 5 6 5 5 6 Terminals 14 | . . . . . . . 1 4 3 2 1 1 2 Fabricators . | . . . . . . . . . . . . . . Repair Stations 2 | . . . . . . . . . . 1 1 . . Recycling Units 7 | . 1 . . . . . . 1 . 1 2 1 1 Scanalyzers 6 | . . . 1 . . . . . 1 . . 2 2 Garrison Access 6 | . . . . . . . . . 1 2 1 1 1 Total Hacks 104 | . 1 1 2 . 26 . 2 15 13 12 11 12 9 Successful 68 | . 1 1 2 . 26 . 1 11 8 4 6 4 4 Failed 35 | . . . . . . . 1 4 5 8 5 8 4 Catastrophic 5 | . . . . . . . 1 . . 1 1 1 1 Database Lockouts 1 | . . . . . . . . . . . . . 1 Manual 1 | . . . . . 1 . . . . . . . . Terminals 35 | . . . . . . . 2 13 7 5 2 2 4 Fabricators . | . . . . . . . . . . . . . . Repair Stations 5 | . . . . . . . . . . 3 2 . . Recycling Units 14 | . 1 . . . . . . 2 . 2 6 2 1 Scanalyzers 14 | . . . 2 . . . . . 4 . . 5 3 Garrison Access 9 | . . . . . . . . . 2 2 1 3 1 Terminal Hacks 47 | . . 1 . . 26 . 1 9 5 . 1 1 3 Record 29 | . . . . . 26 . . . . . 1 . 2 Prototype ID Bank 2 | . . . . . . . . . 1 . . . 1 Open Door 2 | . . 1 . . . . . 1 . . . . . Branch Access Points 1 | . . . . . . . 1 . . . . . . Emergency Access Points 1 | . . . . . . . . 1 . . . . . Garrison Index 1 | . . . . . . . . . 1 . . . . Alert Level 2 | . . . . . . . . 2 . . . . . Unreport Threat 2 | . . . . . . . . 1 1 . . . . Locate Traps 2 | . . . . . . . . 1 . . . 1 . Maintenance Status 1 | . . . . . . . . . 1 . . . . Reinforcement Status 1 | . . . . . . . . 1 . . . . . Hauler Manifests 1 | . . . . . . . . 1 . . . . . Registered Components 1 | . . . . . . . . 1 . . . . . Zone Layout 1 | . . . . . . . . . 1 . . . . Fabricator Hacks . | . . . . . . . . . . . . . . Repair Station Hacks 1 | . . . . . . . . . . . 1 . . Scan Component 1 | . . . . . . . . . . . 1 . . Recycling Unit Hacks 10 | . 1 . . . . . . 2 . 2 4 1 . Process 1 | . . . . . . . . 1 . . . . . Report Inventory 6 | . 1 . . . . . . 1 . 1 2 1 . Retrieve Matter 2 | . . . . . . . . . . 1 1 . . Retrieve Components 1 | . . . . . . . . . . . 1 . . Scanalyzer 7 | . . . 2 . . . . . 2 . . 2 1 Insert Component 5 | . . . 1 . . . . . 2 . . 1 1 Analyze 2 | . . . 1 . . . . . . . . 1 . Garrison Access Hacks 3 | . . . . . . . . . 1 2 . . . Seal Access 3 | . . . . . . . . . 1 2 . . . Unauthorized Hacks . | . . . . . . . . . . . . . . Terminals . | . . . . . . . . . . . . . . Fabricators . | . . . . . . . . . . . . . . Repair Stations . | . . . . . . . . . . . . . . Recycling Units . | . . . . . . . . . . . . . . Scanalyzers . | . . . . . . . . . . . . . . Garrison Access . | . . . . . . . . . . . . . . Data Cores Recovered 1 | . . . . . . . . . . 1 . . . Used . | . . . . . . . . . . . . . . Hacking Detections 28 | . 1 . . . . . 1 4 5 4 4 5 4 Full Trace Events 2 | . . . . . . . . . . 2 . . . Feedback Events . | . . . . . . . . . . . . . . Feedback Blocked . | . . . . . . . . . . . . . . Robot Schematics Acquired . | . . . . . . . . . . . . . . Robots Built . | . . . . . . . . . . . . . . Matter . | . . . . . . . . . . . . . . Time . | . . . . . . . . . . . . . . Total Robot Build Rating . | . . . . . . . . . . . . . . Part Schematics Acquired 1 | . . . 1 . . . . . . . . . . Parts Built . | . . . . . . . . . . . . . . Matter . | . . . . . . . . . . . . . . Time . | . . . . . . . . . . . . . . Total Part Build Rating . | . . . . . . . . . . . . . . Parts Repaired . | . . . . . . . . . . . . . . Time . | . . . . . . . . . . . . . . Parts Recycled . | . . . . . . . . . . . . . . Recycled Matter 225 | . . . . . . . . 225 . . . . . Retrieved Matter . | . . . . . . . . . . . . . . Retrieved Components 2 | . . . . . . . . . . . 2 . . Parts Scanalyzed 4 | . . . 1 . . . . . 1 . . 1 1 Part Schematics Acquired 1 | . . . 1 . . . . . . . . . . Parts Damaged . | . . . . . . . . . . . . . . Bothacking | -11 -10 -10 -9 -9 -9 -8 -8 -8 -7 -6 -5 -4 -3 ------------ Run | Scr Mat Min Mat Min Exi Min Mat Sto Fac Fac Fac Fac Res Used RIF Installer . | . . . . . . . . . . . . . . Robots Hacked . | . . . . . . . . . . . . . . Non-combat . | . . . . . . . . . . . . . . Combat . | . . . . . . . . . . . . . . Robot Hacks Applied . | . . . . . . . . . . . . . . Relay Couplers Released . | . . . . . . . . . . . . . . Robots Rewired . | . . . . . . . . . . . . . . Allies Hacked . | . . . . . . . . . . . . . . Hacks Repelled . | . . . . . . . . . . . . . . Allies | -11 -10 -10 -9 -9 -9 -8 -8 -8 -7 -6 -5 -4 -3 -------- Run | Scr Mat Min Mat Min Exi Min Mat Sto Fac Fac Fac Fac Res Total Allies 1 | . . 1 . . . . . . . . . . . Largest Group 1 | . . 1 1 . . . . . . . . . . Highest-Rated Group 31 | . . 31 31 . . . . . . . . . . Highest-Rated Ally 31 | . . 31 31 . . . . . . . . . . Total Orders . | . . . . . . . . . . . . . . Ally Attacks 3 | . . 3 . . . . . . . . . . . Total Damage 42 | . . 42 . . . . . . . . . . . Kills 2 | . . 2 . . . . . . . . . . . Allies Corrupted . | . . . . . . . . . . . . . . Allies Melted . | . . . . . . . . . . . . . . Intel | -11 -10 -10 -9 -9 -9 -8 -8 -8 -7 -6 -5 -4 -3 ------- Run | Scr Mat Min Mat Min Exi Min Mat Sto Fac Fac Fac Fac Res Robot Analysis Total . | . . . . . . . . . . . . . . Derelict Logs Recovered 1 | . . 1 . . . . . . . . . . . Drone Launches . | . . . . . . . . . . . . . . Drone Recoveries . | . . . . . . . . . . . . . . Exploration | -11 -10 -10 -9 -9 -9 -8 -8 -8 -7 -6 -5 -4 -3 ------------- Run | Scr Mat Min Mat Min Exi Min Mat Sto Fac Fac Fac Fac Res Turns Passed 16256 | 85 255 244 794 498 854 770 1424 930 966 2454 2313 1508 3161 Spaces Moved 7061 | 77 162 143 340 256 455 195 617 429 416 1185 876 557 1353 Core 136 | 33 . . . . . . . . . . . . 103 Treads 6789 | . 71 143 340 256 455 195 617 429 416 1185 876 557 1249 Legs 1 | . . . . . . . . . . . . . 1 Wheels 135 | 44 91 . . . . . . . . . . . . Hover . | . . . . . . . . . . . . . . Flight . | . . . . . . . . . . . . . . Fastest Speed 50 | 50 80 160 165 185 165 185 152 152 152 156 180 163 50 Average Speed 167 | 74 115 160 179 185 184 185 156 153 155 173 181 171 159 Slowest Speed 240 | 100 160 165 185 185 185 185 162 172 156 180 183 182 240 Overloaded Moves . | . . . . . . . . . . . . . . Propulsion Burnouts . | . . . . . . . . . . . . . . Robots Hopped . | . . . . . . . . . . . . . . Cave-ins Triggered 3 | . . . . . . . . 1 1 . . . 1 Exploration Rate (%) 34 | 3 34 33 39 60 76 32 39 63 10 23 21 16 27 Regions Visited 13 Branch Regions 5 Pre-discovered Areas . | . . . . . . . . . . . . . . Known Exits Taken 2 | . . . . . . . 1 . . . . 1 . Unknown Exits Taken 11 | 1 1 1 1 1 1 1 . 1 1 1 1 . . Scrap Searched . | . . . . . . . . . . . . . . Spaces Dug 165 | . . . 2 . . 2 28 . 30 21 31 19 32 Terrain Destroyed 1251 | . 49 . 26 17 . 73 176 46 49 98 156 194 367 Melee 20 | . . . 2 . . 2 1 . 8 4 3 . . Projectile 133 | . . . . . . 2 9 1 2 6 10 36 67 AOE 1098 | . 49 . 24 17 . 69 166 45 39 88 143 158 300 Terrain Rammed . | . . . . . . . . . . . . . . Walls Destroyed . | . . . . . . . . . . . . . . Machines Disabled . | . . . . . . . . . . . . . . Actions | -11 -10 -10 -9 -9 -9 -8 -8 -8 -7 -6 -5 -4 -3 --------- Run | Scr Mat Min Mat Min Exi Min Mat Sto Fac Fac Fac Fac Res Total 10853 | 101 199 156 443 267 473 593 1014 648 690 1527 1507 1018 2217 Wait 2762 | . 14 . 39 . . 376 330 158 200 236 508 356 545 Move 7048 | 76 161 142 339 255 454 194 616 428 415 1184 875 556 1353 Hop . | . . . . . . . . . . . . . . Pick Up 220 | 14 4 6 12 1 6 4 16 13 22 32 27 18 45 Fast Attach . | . . . . . . . . . . . . . . Attach 134 | 7 1 . 4 . 4 3 9 10 14 5 17 11 49 Detach 16 | . . . . . 2 3 . . . . 1 . 10 Swap 98 | . 1 1 10 4 . . 5 5 4 11 11 9 37 Drop 137 | 2 2 5 . 1 7 6 12 7 11 20 20 14 30 Fire 394 | 2 16 2 37 6 . 5 24 23 16 27 35 53 148 Melee 34 | . . . 2 . . 2 1 4 8 5 12 . . Ram . | . . . . . . . . . . . . . . Kick . | . . . . . . . . . . . . . . Crush 10 | . . . . . . . 1 . . 7 1 1 . Escape Stasis . | . . . . . . . . . . . . . . Rewire . | . . . . . . . . . . . . . . Trap . | . . . . . . . . . . . . . . Miscellaneous . | . . . . . . . . . . . . . . Route ------- -11/Scrapyard -10/Materials -10/Mines -9/Materials -9/Mines -9/Exiles -8/Mines -8/Materials -8/Storage -7/Factory -6/Factory -5/Factory -4/Factory -3/Research History --------- Turn | Location | Event 29 | -11/Scrapyard | Discovered new exit (range 15) 86 | -11/Scrapyard | Entered Materials 141 | -10/Materials | Discovered new exit (range 15) 315 | -10/Materials | Build established: Mutant 341 | -10/Materials | Entered Mines 344 | -10/Mines | Received a Mining Laser from a helpful Derelict 405 | -10/Mines | YI-UF0 nonchalantly dropped a Grenade Launcher on the ground 445 | -10/Mines | Learned Materials emergency access door positions 486 | -10/Mines | Discovered new exit (range 7) 533 | -10/Mines | Met a Derelict shopkeep closing up shop 585 | -10/Mines | Entered Materials 585 | -9/Materials | Accompanied by 1 ally 585 | -9/Materials | Evolved 2 slots: Utility x2 1353 | -9/Materials | Discovered new exit (range 15) 1379 | -9/Materials | Entered Mines 1411 | -9/Mines | Met a Derelict bent on vengeance 1866 | -9/Mines | Deemed a non-threat by the Exiles lab entrance 1866 | -9/Mines | Discovered new exit (range 5) 1877 | -9/Mines | Entered Exiles 1920 | -9/Exiles | Met 8R-AWN 1951 | -9/Exiles | Met EX-HEX 2064 | -9/Exiles | Met EX-BIN 2087 | -9/Exiles | Aligned with FarCom system 2088 | -9/Exiles | Given EX-Vault access code 2133 | -9/Exiles | Opened EX-Vault 2219 | -9/Exiles | Warned to stay clear of 0b10 Research branches 2294 | -9/Exiles | Found Prototype Energy Cannon 2298 | -9/Exiles | Identified YOLO Cannon 2303 | -9/Exiles | Found Prototype Energy Cannon 2308 | -9/Exiles | Identified Latent Energy Streamer 2434 | -9/Exiles | Met EX-DEC 2532 | -9/Exiles | Visited The Gauntlet 2709 | -9/Exiles | Discovered new exit (range 14) 2731 | -9/Exiles | Left Exiles lab with YOLO Cannon 2731 | -9/Exiles | Entered Mines 3486 | -8/Mines | Discovered new exit (range 7) 3501 | -8/Mines | Entered Materials 3501 | -8/Materials | Evolved 2 slots: Propulsion x2 3810 | -8/Materials | Identified exit to Storage 4925 | -8/Materials | Entered Storage 5563 | -8/Storage | Build established: Skirmisher 5614 | -8/Storage | Crushed by falling debris 5645 | -8/Storage | Lost 3 parts (1p2n) 5849 | -8/Storage | Discovered new exit (range 5) 5855 | -8/Storage | Entered Factory 5855 | -7/Factory | Evolved 2 slots: Power x1, Utility x1 6039 | -7/Factory | Build established: Assassin 6263 | -7/Factory | Crushed by falling debris 6345 | -7/Factory | Lost 5 parts (2p1n2w) 6812 | -7/Factory | Discovered new exit (range 6) 6821 | -7/Factory | Entered another Factory area 6821 | -6/Factory | Evolved 2 slots: Utility x2 6893 | -6/Factory | Build established: Skirmisher 7731 | -6/Factory | Build established: Hauler-Assassin 8787 | -6/Factory | Build established: Hauler-Skirmisher 9129 | -6/Factory | Discovered new exit (range 5) 9275 | -6/Factory | Entered another Factory area 9275 | -5/Factory | Evolved 2 slots: Power x1, Weapon x1 9768 | -5/Factory | Build established: Hauler-Assassin 10621 | -5/Factory | Build established: Hauler-Mutant 11210 | -5/Factory | Build established: Hauler-Assassin 11580 | -5/Factory | Discovered new exit (range 5) 11588 | -5/Factory | Entered another Factory area 11588 | -4/Factory | Evolved 2 slots: Propulsion x1, Utility x1 12237 | -4/Factory | Build established: Hauler-Skirmisher 12307 | -4/Factory | Garrison activated, responded to threat 12363 | -4/Factory | Found Quantum Capacitor 13058 | -4/Factory | Discovered new exit (range 21) 13094 | -4/Factory | Identified exit to Research 13096 | -4/Factory | Entered Research 13096 | -3/Research | Evolved 2 slots: Utility x2 13118 | -3/Research | Central database locked down 13125 | -3/Research | Garrison activated, responded to threat 13872 | -3/Research | First assault squad dispatched 14073 | -3/Research | Crushed by falling debris 14073 | -3/Research | System corruption reached 10% 14104 | -3/Research | Lost 3 parts (2u1w) 14108 | -3/Research | Found Unknown Launcher 14109 | -3/Research | Identified Gamma Bomb Array 14245 | -3/Research | Found Prototype Device 14246 | -3/Research | Identified Exp. Transmission Jammer 14939 | -3/Research | Destroyed 7 combat bots 15034 | -3/Research | Build established: Generator-Mutant 15838 | -3/Research | Garrison activated, responded to threat 15894 | -3/Research | Lost 3 parts (1p1u1w) 16018 | -3/Research | Lost 3 parts (1p1n1w) 16208 | -3/Research | Core integrity fell below 50% 16237 | -3/Research | Lost 21 parts (3p7n7u4w) 16241 | -3/Research | Core integrity fell below 20% 16257 | -3/Research | Destroyed by P-80 Master with Gamma Rifle Last Messages --------------- 16213_ O-32 Director: "IFF HANDSHAKE FAILED. SECURING TERMINAL." 16217_ ALERT: Hostiles spotted, dispatching reinforcements to Terminal R006. 16223_ K-01 Serf cleans the Engineering Station. 16224_ C-30 ARC bursts open, deploying its payload. 16224_ G-73 Enforcer unfolds itself. 16224_ G-67 Veteran unfolds itself. 16224_ B-74 Champion unfolds itself. 16224_ K-01 Serf cleans the Subatomic Condenser. 16227_ P-80 Master resets B-74 Champion, system corruption cleaned. 16227_ Penetrated by Slug. 16228_ System corrupted: Matter fused (-9). [Achievement: Hunted] 16239_ E-15 Imp destroyed. 16242_ K-01 Serf collects debris. 16243_ System corrupted: Matter fused (-7). 16246_ K-01 Serf collects debris. 16248_ P-80 Master resets K-01 Serf, system corruption cleaned. 16250_ K-01 Serf collects debris. [Achievement: Just Browsing] Map ----- +----------------------------------------------------+ | ?# +????????????????? ??????????????????????? | | ## #????????????? ??? "??????????????????????? | | # #???????????? """ ""?????????????????????? | | # #???????????? """ """????????????????????? | | # #???????????? ?????????????????????? | | # #????????#### ?????? # "???????????? | | # ########## # ## #/#"####### # "???????????? | | # ## # # # # ""??????????? | | + ########## # """? ""?????? | | # # # + """ ""?????? | | # # ## # """ ""?????? | | ###/##### # ## ""#???# """ """????? | | ? "%"???# # ## ##### ???? | | ??#gg #! ## # # # ?????? | | ?# # ## # " ????????? | | "" # # ## ### " """#####???/????? | | "" # # ## # ! #??? ????? | | """ # # ## + ! #?????#??? | | ?" # g # ## # ##???????? | | ? # # | ## # | #??????#? | | ? # ###+###### # ###? ?#?## | | ? # %= #?# ####/#########????##### | | ?? ?+ gg #?# # #### #?### | | ??? ??# g #?# # #??#? ? | | ????????# #?# # #### | | ?????#####/#+### b ### @ # #### ? | | ?????# #h #?# # + ###?? | | ?????# # #?# ###+##########"!%#### | | ?????# """ # #?#k #?##?### " ### | | ??#??# """ +g #?# ######## " ### | | ?????# """ #gg #?# ########+## ## | | ?????# "S # h ### # ## # | | ?????# "" # #?# ### # #### | | ###### "" ! # g#?# ### # #?##?? | | # # g###p ### # ! ### | | # # gp ### + + #? | | # # ### # ### | | # """ # #?# # ### | | "" # """ # #?# # ### | | "" # """ # ###+###### ########"####### | | " !# # # ## # ! ### | | # # # ## # / #?? | | = ########### # ## + ### | | = #?#???#?#?# # + # ### | | #?????????# # # # # | | ##?????##?# # + ################ | | # ?? ?? ?# ###########+#+############?### | | ##### ?????? # #????# ############ | | #???#??? "??? # #????# ############ | | #?#????? "????/ % ##?#?# """ """ ############ | +----------------------------------------------------+ Best States ------------- Heat Dissipation 77 Energy Generation 59 Energy Capacity 560 Matter Stores 300 Matter Capacity 300 Sight Range 16 Robot Scan Range 10 Terrain Scan Range 24 Terrain Scan Density 210 ECM Strength 2 Jamming Range 22 Armor Coverage 600 Utility Shielding 66 Weapon Cycling 25 Phase Shifting 5 Evasion (%) 50 Recoil Reduction 5 Particle Charging 15 Offensive Hacking 10 Item Schematics ----------------- Grenade Launcher | -9/Materials | Scanalyzed Robot Schematics ------------------ None Fabricated ------------ Nothing Alien Tech Used ----------------- None Achievements -------------- Dangerous Findings Hunted Just Browsing Leap Before You Look Omniscient Cartographer Respectable Loadout Tank Challenges ------------ None Game ------ Seed XenonDataRegenerator Manual? 0 Play Time 03:42:55 Cumulative 24.7 hours Start 2021.05.11 @ 02:53:36 End 2021.05.11 @ 06:53:11 Sessions 1 Manual Loads 0 Difficulty Rogue Special Mode None Game No. 14 Rogue 14 Adventurer 0 Explorer 0 Win Type - Total 0 Types 0/0/0/0/0/0/0/0/0 Lore% 22 Gallery% 27 Achievement% 19 Wizard Run 0 Options --------- ASCII 0 Keyboard 0 Movement Mouse Keybinds 0 Fullscreen 1 Font 18/SmallcapsGlow Map View 76x50 Tactical HUD 1 Map Filters NONE Filters NONE Steam 1 RUN: cf18ea94-8b67-4c83-9083-a57e830312b3